Workbook

Sheet Vorbemerkungen
A2: Kalkulationsverfahren für den Partnerschaftlichen Einheitspreisvertrag
A3: Diese Excel-Datei enthält die Formblätter des Kalkulationsverfahren Kalkulation zur Angebotssumme für die Kalkulation der Fixpreise und der Einheitspreise, die für die Vergütungsform des Partnerschaftlichen Einheitspreispreisvertrages benötigt werden. Die Formblätter sind über Formeln miteinander verknüpft.
A5: Eine Kalkulation der Fixpreise und der Einheitspreise kann mit folgenden Formblättern durchgeführt werden:
B7: Formblatt 1 – Ermittlung der fixen und variablen Einzelkosten der Teilleistungen
B9: Formblatt 2 – Ermittlung der Baustellengemeinkosten mit Zuschlag
B11: Formblatt 3 – Zuschlagssätze für die Umlage
B13: Formblatt 4 – Durchführung der Umlage
B15: Formblatt 5 – Ermittlung der Vertragspreise
B17: Formblatt 6 – Ermittlung der Angebotssumme
A19: Die Eingaben in die Formblätter erfolgen in den farblich hinterlegten Zellen. In den anderen Zellen sind Formeln hinterlegt, die den Zelleninhalt automatisch berechnen.
A21: Eine Anleitung zur Anwendung der Formblätter kann unter www.kalkulation.einheitspreisvertrag.de nachgeschlagen werden.
A23: Autor: | B23: Christian Flemming
A25: Kontakt: | B25: info@einheitspreisvertrag.de
A27: Quelle: | B27: www.einheitspreisvertrag.de
B28: www.kalkulation.einheitspreisvertrag.de
A30: Das Werk einschließlich aller seiner Teile ist urheberrechtlich geschützt. Jede wissenschaftliche, nicht kommerzielle Verwertung ist unter Angabe des Autors zulässig.

Sheet Formblatt 1 - Einzelkosten
A1: Formblatt 1 – Ermittlung der fixen und variablen Einzelkosten der Teilleistungen
A4: Beschreibung der Teilleistung | F4: Variable Einzelkosten je Einheit (ohne Zuschlag) | K4: Variable Einzelkosten je Teilleistung (ohne Zuschlag) | Q4: Fixe Einzelkosten je Teilleistung (ohne Zuschlag)
A5: Positions-nummer | C5: Kurztext der Teilleistung | D5: Mengenansatz | F5: Kostenarten | K5: Kostenarten | Q5: Kostenarten
F6: Lohnkosten | G6: Stoffkosten | H6: Gerätekosten | I6: Sonstige Kosten | J6: NU-Leistungen | K6: Lohnkosten | M6: Stoffkosten | N6: Gerätekosten | O6: Sonstige Kosten | P6: NU-Leistungen | Q6: Lohnkosten | S6: Stoffkosten | T6: Gerätekosten | U6: Sonstige Kosten | V6: NU-Leistungen
K7: Mittellohn = | L7: 26.15 | Q7: Mittellohn = | R7: =L7 -> 26.15
F8: [h] | G8: [€] | H8: [€] | I8: [€] | J8: [€] | K8: [h] | L8: [€] | M8: [€] | N8: [€] | O8: [€] | P8: [€] | Q8: [h] | R8: [€] | S8: [€] | T8: [€] | U8: [€] | V8: [€]
A9: 1 | C9: 2 | D9: 3 | F9: 4 | G9: 5 | H9: 6 | I9: 7 | J9: 8 | K9: 9 | L9: 10 | M9: 11 | N9: 12 | O9: 13 | P9: 14 | Q9: 15 | R9: 16 | S9: 17 | T9: 18 | U9: 19 | V9: 20
K10: [3] · [4] | L10: [9] · ML | M10: [3] · [5] | N10: [3] · [6] | O10: [3] · [7] | P10: [3] · [8]
A11: 14.2.85 | C11: Schalung der Beckenwand | D11: 687.63 | E11: m² | F11: 0.4 | G11: 0 | K11: =D11*F11 -> 275.052 | L11: =ROUND(K11*$L$7,2) -> 7192.61 | M11: =ROUND(D11*G11,2) -> 0 | N11: =ROUND(D11*H11,2) -> 0 | O11: =ROUND(D11*I11,2) -> 0 | P11: =ROUND(D11*J11,2) -> 0 | Q11: 103.62 | R11: =ROUND(Q11*$R$7,2) -> 2709.66 | S11: 946 | T11: 2746.84 | U11: 734.24 | V11: 0
A12: Rest | C12: restliche Leistungspositionen | D12: 1 | E12: psch. | F12: 16315.44 | G12: 792102.8 | H12: 20217.75 | I12: 24562.87 | J12: 243439.89 | K12: =D12*F12 -> 16315.44 | L12: =ROUND(K12*$L$7,2) -> 426648.76 | M12: =ROUND(D12*G12,2) -> 792102.8 | N12: =ROUND(D12*H12,2) -> 20217.75 | O12: =ROUND(D12*I12,2) -> 24562.87 | P12: =ROUND(D12*J12,2) -> 243439.89 | Q12: 3341.72 | R12: =ROUND(Q12*$R$7,2) -> 87385.98 | S12: 128946.97 | T12: 17222.52 | U12: 66410.73 | V12: 136934.94
K13: =D13*F13 -> 0 | L13: =ROUND(K13*$L$7,2) -> 0 | M13: =ROUND(D13*G13,2) -> 0 | N13: =ROUND(D13*H13,2) -> 0 | O13: =ROUND(D13*I13,2) -> 0 | P13: =ROUND(D13*J13,2) -> 0 | R13: =ROUND(Q13*$R$7,2) -> 0
K14: 0 | L14: 0 | M14: 0 | N14: 0 | O14: 0 | P14: 0 | R14: 0
K15: 0 | L15: 0 | M15: 0 | N15: 0 | O15: 0 | P15: 0 | R15: 0
K16: 0 | L16: 0 | M16: 0 | N16: 0 | O16: 0 | P16: 0 | R16: 0
J17: Summe | K17: =SUM(K11:K16) -> 16590.492 | L17: 433841.37 | M17: 792102.8 | N17: 20217.75 | O17: 24562.87 | P17: 243439.89 | Q17: 3445.34 | R17: 90095.64 | S17: 129892.97 | T17: 19969.36 | U17: 67144.97 | V17: 136934.94

Sheet Formblatt 2 - BGK mit Zuschlag
A1: Formblatt 2 – Ermittlung der Baustellengemeinkosten mit Zuschlag
A4: Baustellengemeinkosten
A5: Kostenarten | D5: Lohnkosten [€] | E5: Stoffkosten [€] | F5: Gerätekosten [€] | G5: Sonstige Kosten [€] | H5: NU-Leistungen [€] | I5: Summe [€]
A6: zeitunabhängige BGK | D6: 6966.36 | E6: 26111.78 | F6: 30235.2 | G6: 62625.67 | H6: 1969.54 | I6: =SUM(D6:H6) -> 127908.55
A7: zeitabhängige BGK | D7: 22060.14 | E7: 42603.43 | F7: 8281.28 | G7: 11567.85 | H7: 0 | I7: =SUM(D7:H7) -> 84512.7
A8: Summe der BGK | D8: =SUM(D6:D7) -> 29026.5 | E8: =SUM(E6:E7) -> 68715.21 | F8: =SUM(F6:F7) -> 38516.48 | G8: =SUM(G6:G7) -> 74193.52 | H8: =SUM(H6:H7) -> 1969.54 | I8: =SUM(D8:H8) -> 212421.25
A9: Allgemeine Geschäftskosten, Wagnis und Gewinn für die Baustellengemeinkosten
A10: Allgemeine Geschäftskosten (AGK), Wagnis (W) und Gewinn (G)
A11: für die Baustellengemeinkosten der Kostenart LOHN
B13: AGK: | C13: 9 | D13: der | E13: Baustellengemeinkosten für Lohnkosten | H13: =D8 -> 29026.5
B14: W + G: | C14: 2 | D14: Baustellen-
A15: Summe: | C15: =C13+C14 -> 11 | D15: gemeinkosten
A16: Umrechnung auf Herstellkosten | E16: =C15 -> 11 | F16: =C15 -> 11 | G16: =ROUNDUP(C15*100/(100-C15),2) -> 12.36 | H16: =SUM(H13:H15) -> 29026.5 | I16: =ROUND(H16*G16/100,2) -> 3587.68
A18: Allgemeine Geschäftskosten (AGK), Wagnis (W) und Gewinn (G)
A19: für die Baustellengemeinkosten der Kostenart STOFFKOSTEN
B21: AGK: | C21: 9 | D21: der | E21: Baustellengemeinkosten für Stoffkosten | H21: =E8 -> 68715.21
B22: W + G: | C22: 2 | D22: Baustellen-
A23: Summe: | C23: =C21+C22 -> 11 | D23: gemeinkosten
A24: Umrechnung auf Herstellkosten | E24: =C23 -> 11 | F24: =C23 -> 11 | G24: =ROUNDUP(C23*100/(100-C23),2) -> 12.36 | H24: =SUM(H21:H23) -> 68715.21 | I24: =ROUND(H24*G24/100,2) -> 8493.2
A26: Allgemeine Geschäftskosten (AGK), Wagnis (W) und Gewinn (G)
A27: für die Baustellengemeinkosten der Kostenart GERÄTEKOSTEN
B29: AGK: | C29: 9 | D29: der | E29: Baustellengemeinkosten für Gerätekosten | H29: =F8 -> 38516.48
B30: W + G: | C30: 2 | D30: Baustellen-
A31: Summe: | C31: =C29+C30 -> 11 | D31: gemeinkosten
A32: Umrechnung auf Herstellkosten | E32: =C31 -> 11 | F32: =C31 -> 11 | G32: =ROUNDUP(C31*100/(100-C31),2) -> 12.36 | H32: =SUM(H29:H31) -> 38516.48 | I32: =ROUND(H32*G32/100,2) -> 4760.64
A34: Allgemeine Geschäftskosten (AGK), Wagnis (W) und Gewinn (G)
A35: für die Baustellengemeinkosten der Kostenart SONSTIGE KOSTEN
B37: AGK: | C37: 9 | D37: der | E37: Baustellengemeinkosten für sonstige Kosten | H37: =G8 -> 74193.52
B38: W + G: | C38: 2 | D38: Baustellen-
A39: Summe: | C39: =C37+C38 -> 11 | D39: gemeinkosten
A40: Umrechnung auf Herstellkosten | E40: =C39 -> 11 | F40: =C39 -> 11 | G40: =ROUNDUP(C39*100/(100-C39),2) -> 12.36 | H40: =SUM(H37:H39) -> 74193.52 | I40: =ROUND(H40*G40/100,2) -> 9170.32
A42: Allgemeine Geschäftskosten (AGK), Wagnis (W) und Gewinn (G)
A43: für die Baustellengemeinkosten der Kostenart NACHUNTERNEHMERLEISTUNGEN
B45: AGK: | C45: 7 | D45: der | E45: Baustellengemeinkosten für Nachunternehmerleistungen | H45: =H8 -> 1969.54
B46: W + G: | C46: 2 | D46: Baustellen-
A47: Summe: | C47: =C45+C46 -> 9 | D47: gemeinkosten
A48: Umrechnung auf Herstellkosten | E48: =C47 -> 9 | F48: =C47 -> 9 | G48: =ROUND(C47*100/(100-C47),2) -> 9.89 | H48: =SUM(H45:H47) -> 1969.54 | I48: =ROUND(H48*G48/100,2) -> 194.79
A49: Summe der Baustellengemeinkosten mit Zuschlag
A50: Kostenarten | D50: Lohnkosten [€] | E50: Stoffkosten [€] | F50: Gerätekosten [€] | G50: Sonstige Kosten [€] | H50: Fremdleistung [€] | I50: Summe [€]
A51: Baustellengemeinkosten | D51: =D8 -> 29026.5 | E51: =E8 -> 68715.21 | F51: =F8 -> 38516.48 | G51: =G8 -> 74193.52 | H51: =H8 -> 1969.54 | I51: =SUM(D51:H51) -> 212421.25
A52: AGK, W + G auf BGK | D52: =I16 -> 3587.68 | E52: =I24 -> 8493.2 | F52: =I32 -> 4760.64 | G52: =I40 -> 9170.32 | H52: =I48 -> 194.79 | I52: =SUM(D52:H52) -> 26206.63
A53: Summe | D53: =SUM(D51:D52) -> 32614.18 | E53: =SUM(E51:E52) -> 77208.41 | F53: =SUM(F51:F52) -> 43277.12 | G53: =SUM(G51:G52) -> 83363.84 | H53: =SUM(H51:H52) -> 2164.33 | I53: =SUM(D53:H53) -> 238627.88

Sheet Formblatt 3 - Zuschlagssätze
A1: Formblatt 3 – Zuschlagssätze für die Umlage
A4: Ermittlung der Bezugsbasis
A5: Kostenarten | D5: Lohnkosten [€] | E5: Stoffkosten [€] | F5: Gerätekosten [€] | G5: Sonstige Kosten [€] | H5: NU-Leistungen [€] | I5: Summe [€]
A6: Variable Einzelkosten | D6: ='Formblatt 1 - Einzelkosten'!L17 -> 433841.37 | E6: ='Formblatt 1 - Einzelkosten'!M17 -> 792102.8 | F6: ='Formblatt 1 - Einzelkosten'!N17 -> 20217.75 | G6: ='Formblatt 1 - Einzelkosten'!O17 -> 24562.87 | H6: ='Formblatt 1 - Einzelkosten'!P17 -> 243439.89 | I6: =SUM(D6:H6) -> 1514164.68
A7: Fixe Einzelkosten | D7: ='Formblatt 1 - Einzelkosten'!R17 -> 90095.64 | E7: ='Formblatt 1 - Einzelkosten'!S17 -> 129892.97 | F7: ='Formblatt 1 - Einzelkosten'!T17 -> 19969.36 | G7: ='Formblatt 1 - Einzelkosten'!U17 -> 67144.97 | H7: ='Formblatt 1 - Einzelkosten'!V17 -> 136934.94 | I7: =SUM(D7:H7) -> 444037.88
A8: Summe der Einzelkosten | D8: =SUM(D6:D7) -> 523937.01 | E8: =SUM(E6:E7) -> 921995.77 | F8: =SUM(F6:F7) -> 40187.11 | G8: =SUM(G6:G7) -> 91707.84 | H8: =SUM(H6:H7) -> 380374.83 | I8: =SUM(D8:H8) -> 1958202.56
A9: Ermittlung der Zuschlagsätze
A10: Summe der Baustellengemeinkosten mit Zuschlag | I10: ='Formblatt 2 - BGK mit Zuschlag'!I53 -> 238627.88
A11: abzüglich gewählten Zuschlag auf | G11: Einzelkosten | H11: Umlagebetrag
E12: Stoffkosten | F12: 15 | G12: =E8 -> 921995.77 | H12: =ROUND(G12/100*F12,2) -> 138299.37
E13: Gerätekosten | F13: 15 | G13: =F8 -> 40187.11 | H13: =ROUND(G13/100*F13,2) -> 6028.07
E14: Sonstige Kosten | F14: 15 | G14: =G8 -> 91707.84 | H14: =ROUND(G14/100*F14,2) -> 13756.18
E15: NU-Leistungen | F15: 10 | G15: =H8 -> 380374.83 | H15: =ROUND(G15/100*F15,2) -> 38037.48
H16: Summe gewählter Zuschläge: | I16: =SUM(H12:H15) -> 196121.1
A17: zu verrechnender Zuschlag auf Lohnkosten (Restumlage) | I17: =I10-I16 -> 42506.78
A18: Mittellohn | I18: ='Formblatt 1 - Einzelkosten'!L7 -> 26.15
A19: Zuschlag auf Mittellohn | E19: =I17 -> 42506.78 | F19: =D8 -> 523937.01 | G19: =IF(ISERROR(ROUND(I17/D8,4)),0,ROUND(I17/D8,4)) -> 0.0811 | I19: =ROUND(I18*G19,2) -> 2.12

Sheet Formblatt 4- Gemeinkostenumlage
A1: Formblatt 4 – Durchführung der Umlage
A4: Beschreibung der Teilleistung | D4: Summe der variablen und fixen Einzelkosten je Teilleistung | I4: Anteil an den Baustellengemeinkosten mit Zuschlag je Teilleistung | N4: Gesamtanteil an den BGK mit Zuschlag je Teilleistung
A5: Positions-nummer | C5: Kurztext der Teilleistung | D5: Kostenarten | I5: Kostenarten
D6: Lohnkosten | E6: Stoffkosten | F6: Gerätekosten | G6: Sonstige Kosten | H6: NU-Leistungen | I6: Lohnkosten | J6: Stoffkosten | K6: Gerätekosten | L6: Sonstige Kosten | M6: NU-Leistungen
D8: [h] | E8: [€] | F8: [€] | G8: [€] | H8: [€] | I8: [€] | J8: [€] | K8: [€] | L8: [€] | M8: [€] | N8: [€]
A9: 1 | C9: 2 | D9: 3 | E9: 4 | F9: 5 | G9: 6 | H9: 7 | I9: 8 | J9: 9 | K9: 10 | L9: 11 | M9: 12 | N9: 13
I10: ='Formblatt 3 - Zuschlagssätze'!I19 -> 2.12 | J10: ='Formblatt 3 - Zuschlagssätze'!F12/100 -> 0.15 | K10: ='Formblatt 3 - Zuschlagssätze'!F13/100 -> 0.15 | L10: ='Formblatt 3 - Zuschlagssätze'!F14/100 -> 0.15 | M10: ='Formblatt 3 - Zuschlagssätze'!F15/100 -> 0.1 | N10: Σ [8] bis [12]
A11: ='Formblatt 1 - Einzelkosten'!A11 -> 14.2.85 | C11: ='Formblatt 1 - Einzelkosten'!C11 -> Schalung der Beckenwand | D11: ='Formblatt 1 - Einzelkosten'!K11+'Formblatt 1 - Einzelkosten'!Q11 -> 378.672 | E11: ='Formblatt 1 - Einzelkosten'!M11+'Formblatt 1 - Einzelkosten'!S11 -> 946 | F11: ='Formblatt 1 - Einzelkosten'!N11+'Formblatt 1 - Einzelkosten'!T11 -> 2746.84 | G11: ='Formblatt 1 - Einzelkosten'!O11+'Formblatt 1 - Einzelkosten'!U11 -> 734.24 | H11: ='Formblatt 1 - Einzelkosten'!P11+'Formblatt 1 - Einzelkosten'!V11 -> 0 | I11: =ROUND(D11*$I$10,2) -> 802.78 | J11: =ROUND(E11*$J$10,2) -> 141.9 | K11: =ROUND(F11*$K$10,2) -> 412.03 | L11: =ROUND(G11*$L$10,2) -> 110.14 | M11: =ROUND(H11*$M$10,2) -> 0 | N11: =SUM(I11:M11) -> 1466.85
A12: ='Formblatt 1 - Einzelkosten'!A12 -> Rest | C12: ='Formblatt 1 - Einzelkosten'!C12 -> restliche Leistungspositionen | D12: ='Formblatt 1 - Einzelkosten'!K12+'Formblatt 1 - Einzelkosten'!Q12 -> 19657.16 | E12: ='Formblatt 1 - Einzelkosten'!M12+'Formblatt 1 - Einzelkosten'!S12 -> 921049.77 | F12: ='Formblatt 1 - Einzelkosten'!N12+'Formblatt 1 - Einzelkosten'!T12 -> 37440.27 | G12: ='Formblatt 1 - Einzelkosten'!O12+'Formblatt 1 - Einzelkosten'!U12 -> 90973.6 | H12: ='Formblatt 1 - Einzelkosten'!P12+'Formblatt 1 - Einzelkosten'!V12 -> 380374.83 | I12: =ROUND(D12*$I$10,2) -> 41673.18 | J12: =ROUND(E12*$J$10,2) -> 138157.47 | K12: =ROUND(F12*$K$10,2) -> 5616.04 | L12: =ROUND(G12*$L$10,2) -> 13646.04 | M12: =ROUND(H12*$M$10,2) -> 38037.48 | N12: =SUM(I12:M12) -> 237130.21
A13: ='Formblatt 1 - Einzelkosten'!A13 -> 0 | C13: ='Formblatt 1 - Einzelkosten'!C13 -> 0 | D13: ='Formblatt 1 - Einzelkosten'!K13+'Formblatt 1 - Einzelkosten'!Q13 -> 0 | E13: ='Formblatt 1 - Einzelkosten'!M13+'Formblatt 1 - Einzelkosten'!S13 -> 0 | F13: ='Formblatt 1 - Einzelkosten'!N13+'Formblatt 1 - Einzelkosten'!T13 -> 0 | G13: ='Formblatt 1 - Einzelkosten'!O13+'Formblatt 1 - Einzelkosten'!U13 -> 0 | H13: ='Formblatt 1 - Einzelkosten'!P13+'Formblatt 1 - Einzelkosten'!V13 -> 0 | I13: =ROUND(D13*$I$10,2) -> 0 | J13: =ROUND(E13*$J$10,2) -> 0 | K13: =ROUND(F13*$K$10,2) -> 0 | L13: =ROUND(G13*$L$10,2) -> 0 | M13: =ROUND(H13*$M$10,2) -> 0 | N13: =SUM(I13:M13) -> 0
A14: ='Formblatt 1 - Einzelkosten'!A14 -> 0 | C14: ='Formblatt 1 - Einzelkosten'!C14 -> 0 | D14: ='Formblatt 1 - Einzelkosten'!K14+'Formblatt 1 - Einzelkosten'!Q14 -> 0 | E14: ='Formblatt 1 - Einzelkosten'!M14+'Formblatt 1 - Einzelkosten'!S14 -> 0 | F14: ='Formblatt 1 - Einzelkosten'!N14+'Formblatt 1 - Einzelkosten'!T14 -> 0 | G14: ='Formblatt 1 - Einzelkosten'!O14+'Formblatt 1 - Einzelkosten'!U14 -> 0 | H14: ='Formblatt 1 - Einzelkosten'!P14+'Formblatt 1 - Einzelkosten'!V14 -> 0 | I14: 0 | J14: 0 | K14: 0 | L14: 0 | M14: 0 | N14: 0
A15: ='Formblatt 1 - Einzelkosten'!A15 -> 0 | C15: ='Formblatt 1 - Einzelkosten'!C15 -> 0 | D15: ='Formblatt 1 - Einzelkosten'!K15+'Formblatt 1 - Einzelkosten'!Q15 -> 0 | E15: ='Formblatt 1 - Einzelkosten'!M15+'Formblatt 1 - Einzelkosten'!S15 -> 0 | F15: ='Formblatt 1 - Einzelkosten'!N15+'Formblatt 1 - Einzelkosten'!T15 -> 0 | G15: ='Formblatt 1 - Einzelkosten'!O15+'Formblatt 1 - Einzelkosten'!U15 -> 0 | H15: ='Formblatt 1 - Einzelkosten'!P15+'Formblatt 1 - Einzelkosten'!V15 -> 0 | I15: 0 | J15: 0 | K15: 0 | L15: 0 | M15: 0 | N15: 0
A16: ='Formblatt 1 - Einzelkosten'!A16 -> 0 | C16: ='Formblatt 1 - Einzelkosten'!C16 -> 0 | D16: ='Formblatt 1 - Einzelkosten'!K16+'Formblatt 1 - Einzelkosten'!Q16 -> 0 | E16: ='Formblatt 1 - Einzelkosten'!M16+'Formblatt 1 - Einzelkosten'!S16 -> 0 | F16: ='Formblatt 1 - Einzelkosten'!N16+'Formblatt 1 - Einzelkosten'!T16 -> 0 | G16: ='Formblatt 1 - Einzelkosten'!O16+'Formblatt 1 - Einzelkosten'!U16 -> 0 | H16: ='Formblatt 1 - Einzelkosten'!P16+'Formblatt 1 - Einzelkosten'!V16 -> 0 | I16: 0 | J16: 0 | K16: 0 | L16: 0 | M16: 0 | N16: 0
C17: Summe der Baustellengemeinkosten mit Zuschlag | N17: =SUM(N11:N16) -> 238597.06

Sheet Formblatt 5 - Vertragspreise
A1: Formblatt 5 – Ermittlung der Vertragspreise
A4: Beschreibung der Teilleistung | D4: Variable Kosten je Einheit (mit Zuschlag) | J4: Fixe Kosten je Teilleistung (mit Zuschlag)
A5: Positions-nummer | C5: Kurztext der Teilleistung | D5: variable Einzelkosten | I5: Einheitspreis | J5: fixe Einzelkosten | O5: Gesamtanteil an den BGK mit Zuschlag je Teilleistung | P5: Fixpreis
D6: Lohnkosten | E6: Stoffkosten | F6: Gerätekosten | G6: Sonstige Kosten | H6: NU-Leistungen | J6: Lohnkosten | K6: Stoffkosten | L6: Gerätekosten | M6: Sonstige Kosten | N6: NU-Leistungen
D8: [€] | E8: [€] | F8: [€] | G8: [€] | H8: [€] | I8: [€] | J8: [€] | K8: [€] | L8: [€] | M8: [€] | N8: [€] | O8: [€] | P8: [€]
A9: 1 | C9: 2 | D9: 3 | E9: 4 | F9: 5 | G9: 6 | H9: 7 | I9: 8 | J9: 9 | K9: 10 | L9: 11 | M9: 12 | N9: 13 | O9: 14 | P9: 15
C10: Zuschlag für AGK, W + G = | D10: ='Formblatt 2 - BGK mit Zuschlag'!G16 -> 12.36 | E10: ='Formblatt 2 - BGK mit Zuschlag'!G24 -> 12.36 | F10: ='Formblatt 2 - BGK mit Zuschlag'!G32 -> 12.36 | G10: ='Formblatt 2 - BGK mit Zuschlag'!G40 -> 12.36 | H10: ='Formblatt 2 - BGK mit Zuschlag'!G48 -> 9.89 | I10: Σ [3] von [7] | J10: =D10 -> 12.36 | K10: =E10 -> 12.36 | L10: =F10 -> 12.36 | M10: =G10 -> 12.36 | N10: =H10 -> 9.89 | P10: Σ [9] bis [14]
A11: ='Formblatt 1 - Einzelkosten'!A11 -> 14.2.85 | C11: ='Formblatt 1 - Einzelkosten'!C11 -> Schalung der Beckenwand | D11: =ROUND('Formblatt 1 - Einzelkosten'!F11*(1+$D$10/100)*'Formblatt 1 - Einzelkosten'!$L$7,2) -> 11.75 | E11: =ROUND('Formblatt 1 - Einzelkosten'!G11*(1+$E$10/100),2) -> 0 | F11: =ROUND('Formblatt 1 - Einzelkosten'!H11*(1+$F$10/100),2) -> 0 | G11: =ROUND('Formblatt 1 - Einzelkosten'!I11*(1+$G$10/100),2) -> 0 | H11: =ROUND('Formblatt 1 - Einzelkosten'!J11*(1+$H$10/100),2) -> 0 | I11: =SUM(D11:H11) -> 11.75 | J11: =ROUNDDOWN('Formblatt 1 - Einzelkosten'!Q11*(1+$J$10/100)*'Formblatt 1 - Einzelkosten'!$L$7,2) -> 3044.57 | K11: =ROUND('Formblatt 1 - Einzelkosten'!S11*(1+$K$10/100),2) -> 1062.93 | L11: =ROUND('Formblatt 1 - Einzelkosten'!T11*(1+$L$10/100),2) -> 3086.35 | M11: =ROUND('Formblatt 1 - Einzelkosten'!U11*(1+$M$10/100),2) -> 824.99 | N11: =ROUND('Formblatt 1 - Einzelkosten'!V11*(1+$N$10/100),2) -> 0 | O11: =ROUND('Formblatt 4- Gemeinkostenumlage'!N11,2) -> 1466.85 | P11: =SUM(J11:O11) -> 9485.69
A12: ='Formblatt 1 - Einzelkosten'!A12 -> Rest | C12: ='Formblatt 1 - Einzelkosten'!C12 -> restliche Leistungspositionen | D12: =ROUND('Formblatt 1 - Einzelkosten'!F12*(1+$D$10/100)*'Formblatt 1 - Einzelkosten'!$L$7,2) -> 479382.54 | E12: =ROUND('Formblatt 1 - Einzelkosten'!G12*(1+$E$10/100),2) -> 890006.71 | F12: =ROUND('Formblatt 1 - Einzelkosten'!H12*(1+$F$10/100),2) -> 22716.66 | G12: =ROUND('Formblatt 1 - Einzelkosten'!I12*(1+$G$10/100),2) -> 27598.84 | H12: =ROUND('Formblatt 1 - Einzelkosten'!J12*(1+$H$10/100),2) -> 267516.1 | I12: =SUM(D12:H12) -> 1687220.85 | J12: =ROUNDUP('Formblatt 1 - Einzelkosten'!Q12*(1+$J$10/100)*'Formblatt 1 - Einzelkosten'!$L$7,2) -> 98186.89 | K12: =ROUND('Formblatt 1 - Einzelkosten'!S12*(1+$K$10/100),2) -> 144884.82 | L12: =ROUND('Formblatt 1 - Einzelkosten'!T12*(1+$L$10/100),2) -> 19351.22 | M12: =ROUND('Formblatt 1 - Einzelkosten'!U12*(1+$M$10/100),2) -> 74619.1 | N12: =ROUND('Formblatt 1 - Einzelkosten'!V12*(1+$N$10/100),2) -> 150477.81 | O12: =ROUND('Formblatt 4- Gemeinkostenumlage'!N12,2) -> 237130.21 | P12: =SUM(J12:O12) -> 724650.05
A13: ='Formblatt 1 - Einzelkosten'!A13 -> 0 | C13: ='Formblatt 1 - Einzelkosten'!C13 -> 0 | D13: =ROUND('Formblatt 1 - Einzelkosten'!F13*(1+$D$10/100)*'Formblatt 1 - Einzelkosten'!$L$7,2) -> 0 | E13: =ROUND('Formblatt 1 - Einzelkosten'!G13*(1+$E$10/100),2) -> 0 | F13: =ROUND('Formblatt 1 - Einzelkosten'!H13*(1+$F$10/100),2) -> 0 | G13: =ROUND('Formblatt 1 - Einzelkosten'!I13*(1+$G$10/100),2) -> 0 | H13: =ROUND('Formblatt 1 - Einzelkosten'!J13*(1+$H$10/100),2) -> 0 | I13: =SUM(D13:H13) -> 0 | J13: =ROUNDUP('Formblatt 1 - Einzelkosten'!Q13*(1+$J$10/100)*'Formblatt 1 - Einzelkosten'!$L$7,2) -> 0 | K13: =ROUND('Formblatt 1 - Einzelkosten'!S13*(1+$K$10/100),2) -> 0 | L13: =ROUND('Formblatt 1 - Einzelkosten'!T13*(1+$L$10/100),2) -> 0 | M13: =ROUND('Formblatt 1 - Einzelkosten'!U13*(1+$M$10/100),2) -> 0 | N13: =ROUND('Formblatt 1 - Einzelkosten'!V13*(1+$N$10/100),2) -> 0 | O13: =ROUND('Formblatt 4- Gemeinkostenumlage'!N13,2) -> 0 | P13: =SUM(J13:O13) -> 0
A14: ='Formblatt 1 - Einzelkosten'!A14 -> 0 | C14: ='Formblatt 1 - Einzelkosten'!C14 -> 0 | D14: =ROUND('Formblatt 1 - Einzelkosten'!F14*(1+$D$10/100)*'Formblatt 1 - Einzelkosten'!$L$7,2) -> 0 | E14: =ROUND('Formblatt 1 - Einzelkosten'!G14*(1+$E$10/100),2) -> 0 | F14: =ROUND('Formblatt 1 - Einzelkosten'!H14*(1+$F$10/100),2) -> 0 | G14: =ROUND('Formblatt 1 - Einzelkosten'!I14*(1+$G$10/100),2) -> 0 | H14: =ROUND('Formblatt 1 - Einzelkosten'!J14*(1+$H$10/100),2) -> 0 | I14: 0 | J14: =ROUNDUP('Formblatt 1 - Einzelkosten'!Q14*(1+$J$10/100)*'Formblatt 1 - Einzelkosten'!$L$7,2) -> 0 | K14: =ROUND('Formblatt 1 - Einzelkosten'!S14*(1+$K$10/100),2) -> 0 | L14: =ROUND('Formblatt 1 - Einzelkosten'!T14*(1+$L$10/100),2) -> 0 | M14: =ROUND('Formblatt 1 - Einzelkosten'!U14*(1+$M$10/100),2) -> 0 | N14: =ROUND('Formblatt 1 - Einzelkosten'!V14*(1+$N$10/100),2) -> 0 | O14: =ROUND('Formblatt 4- Gemeinkostenumlage'!N14,2) -> 0 | P14: 0
A15: ='Formblatt 1 - Einzelkosten'!A15 -> 0 | C15: ='Formblatt 1 - Einzelkosten'!C15 -> 0 | D15: =ROUND('Formblatt 1 - Einzelkosten'!F15*(1+$D$10/100)*'Formblatt 1 - Einzelkosten'!$L$7,2) -> 0 | E15: =ROUND('Formblatt 1 - Einzelkosten'!G15*(1+$E$10/100),2) -> 0 | F15: =ROUND('Formblatt 1 - Einzelkosten'!H15*(1+$F$10/100),2) -> 0 | G15: =ROUND('Formblatt 1 - Einzelkosten'!I15*(1+$G$10/100),2) -> 0 | H15: =ROUND('Formblatt 1 - Einzelkosten'!J15*(1+$H$10/100),2) -> 0 | I15: 0 | J15: =ROUNDUP('Formblatt 1 - Einzelkosten'!Q15*(1+$J$10/100)*'Formblatt 1 - Einzelkosten'!$L$7,2) -> 0 | K15: =ROUND('Formblatt 1 - Einzelkosten'!S15*(1+$K$10/100),2) -> 0 | L15: =ROUND('Formblatt 1 - Einzelkosten'!T15*(1+$L$10/100),2) -> 0 | M15: =ROUND('Formblatt 1 - Einzelkosten'!U15*(1+$M$10/100),2) -> 0 | N15: =ROUND('Formblatt 1 - Einzelkosten'!V15*(1+$N$10/100),2) -> 0 | O15: =ROUND('Formblatt 4- Gemeinkostenumlage'!N15,2) -> 0 | P15: 0
A16: ='Formblatt 1 - Einzelkosten'!A16 -> 0 | C16: ='Formblatt 1 - Einzelkosten'!C16 -> 0 | D16: =ROUND('Formblatt 1 - Einzelkosten'!F16*(1+$D$10/100)*'Formblatt 1 - Einzelkosten'!$L$7,2) -> 0 | E16: =ROUND('Formblatt 1 - Einzelkosten'!G16*(1+$E$10/100),2) -> 0 | F16: =ROUND('Formblatt 1 - Einzelkosten'!H16*(1+$F$10/100),2) -> 0 | G16: =ROUND('Formblatt 1 - Einzelkosten'!I16*(1+$G$10/100),2) -> 0 | H16: =ROUND('Formblatt 1 - Einzelkosten'!J16*(1+$H$10/100),2) -> 0 | I16: 0 | J16: =ROUNDUP('Formblatt 1 - Einzelkosten'!Q16*(1+$J$10/100)*'Formblatt 1 - Einzelkosten'!$L$7,2) -> 0 | K16: =ROUND('Formblatt 1 - Einzelkosten'!S16*(1+$K$10/100),2) -> 0 | L16: =ROUND('Formblatt 1 - Einzelkosten'!T16*(1+$L$10/100),2) -> 0 | M16: =ROUND('Formblatt 1 - Einzelkosten'!U16*(1+$M$10/100),2) -> 0 | N16: =ROUND('Formblatt 1 - Einzelkosten'!V16*(1+$N$10/100),2) -> 0 | O16: =ROUND('Formblatt 4- Gemeinkostenumlage'!N16,2) -> 0 | P16: 0

Sheet Formblatt 6 - Angebotssumme
A1: Formblatt 6 – Ermittlung der Angebotssumme
A4: Beschreibung der Teilleistung | F4: Preis der Teilleistung
A5: Positions-nummer | C5: Kurztext der Teilleistung | D5: Mengenansatz
F6: Einheitspreis je Teilleistung | G6: Fixpreis je Teilleistung | H6: Gesamtpreis je Teilleistung
F8: [€] | G8: [€] | H8: [€]
A9: 1 | C9: 2 | D9: 3 | F9: 4 | G9: 5 | H9: 6
A11: ='Formblatt 1 - Einzelkosten'!A11 -> 14.2.85 | C11: ='Formblatt 1 - Einzelkosten'!C11 -> Schalung der Beckenwand | D11: ='Formblatt 1 - Einzelkosten'!D11 -> 687.63 | E11: ='Formblatt 1 - Einzelkosten'!E11 -> m² | F11: ='Formblatt 5 - Vertragspreise'!I11 -> 11.75 | G11: ='Formblatt 5 - Vertragspreise'!P11 -> 9485.69 | H11: =ROUND(F11*D11+G11,2) -> 17565.34
A12: ='Formblatt 1 - Einzelkosten'!A12 -> Rest | C12: ='Formblatt 1 - Einzelkosten'!C12 -> restliche Leistungspositionen | D12: ='Formblatt 1 - Einzelkosten'!D12 -> 1 | E12: ='Formblatt 1 - Einzelkosten'!E12 -> psch. | F12: ='Formblatt 5 - Vertragspreise'!I12 -> 1687220.85 | G12: ='Formblatt 5 - Vertragspreise'!P12 -> 724650.05 | H12: =ROUND(F12*D12+G12,2) -> 2411870.9
A13: ='Formblatt 1 - Einzelkosten'!A13 -> 0 | C13: ='Formblatt 1 - Einzelkosten'!C13 -> 0 | D13: ='Formblatt 1 - Einzelkosten'!D13 -> 0 | E13: ='Formblatt 1 - Einzelkosten'!E13 -> 0 | F13: ='Formblatt 5 - Vertragspreise'!I13 -> 0 | G13: ='Formblatt 5 - Vertragspreise'!P13 -> 0 | H13: =ROUND(F13*D13+G13,2) -> 0
A14: ='Formblatt 1 - Einzelkosten'!A14 -> 0 | C14: ='Formblatt 1 - Einzelkosten'!C14 -> 0 | D14: ='Formblatt 1 - Einzelkosten'!D14 -> 0 | E14: ='Formblatt 1 - Einzelkosten'!E14 -> 0 | F14: ='Formblatt 5 - Vertragspreise'!I14 -> 0 | G14: ='Formblatt 5 - Vertragspreise'!P14 -> 0 | H14: 0
A15: ='Formblatt 1 - Einzelkosten'!A15 -> 0 | C15: ='Formblatt 1 - Einzelkosten'!C15 -> 0 | D15: ='Formblatt 1 - Einzelkosten'!D15 -> 0 | E15: ='Formblatt 1 - Einzelkosten'!E15 -> 0 | F15: ='Formblatt 5 - Vertragspreise'!I15 -> 0 | G15: ='Formblatt 5 - Vertragspreise'!P15 -> 0 | H15: 0
A16: ='Formblatt 1 - Einzelkosten'!A16 -> 0 | C16: ='Formblatt 1 - Einzelkosten'!C16 -> 0 | D16: ='Formblatt 1 - Einzelkosten'!D16 -> 0 | E16: ='Formblatt 1 - Einzelkosten'!E16 -> 0 | F16: ='Formblatt 5 - Vertragspreise'!I16 -> 0 | G16: ='Formblatt 5 - Vertragspreise'!P16 -> 0 | H16: 0
A17: Angebotssumme = | H17: =SUM(H11:H16) -> 2429436.24
